[Event "*** Titled Tuesday 3|2 Blitz"]
[Site "Chess.com"]
[Date "2017.03.07"]
[Round "2"]
[White "FlameOak4464"]
[Black "VeraNebolsina"]
[Result "0-1"]
[WhiteElo "1775"]
[BlackElo "1696"]
[TimeControl "180+2"]
[EndTime "13:19:30 PST"]
[Termination "VeraNebolsina won by resignation"]

1. e4 {[%clk 0:03:02]} 1... c5 {[%clk 0:02:59.8]} 2. Nf3 {[%clk 0:03:02.2]} 2...
d6 {[%clk 0:03:00.8]} 3. d4 {[%clk 0:03:03.3]} 3... cxd4 {[%clk 0:03:01.7]} 4.
Nxd4 {[%clk 0:03:05.2]} 4... Nf6 {[%clk 0:03:02.8]} 5. Nc3 {[%clk 0:03:05.8]}
5... a6 {[%clk 0:03:03.8]} 6. f3 {[%clk 0:03:01.1]} 6... e5 {[%clk 0:03:04]} 7.
Nb3 {[%clk 0:03:00.9]} 7... Be6 {[%clk 0:03:01.8]} 8. Be3 {[%clk 0:02:59.3]}
8... Be7 {[%clk 0:03:00.2]} 9. g4 {[%clk 0:02:55.7]} 9... Nbd7 {[%clk
0:02:51.7]} 10. Qd2 {[%clk 0:02:55.4]} 10... O-O {[%clk 0:02:48.2]} 11. h4
{[%clk 0:02:56.5]} 11... b5 {[%clk 0:02:39.4]} 12. h5 {[%clk 0:02:56.2]} 12...
b4 {[%clk 0:02:32.4]} 13. Nd5 {[%clk 0:02:54.6]} 13... Bxd5 {[%clk 0:02:31.8]}
14. exd5 {[%clk 0:02:55.4]} 14... Nb6 {[%clk 0:02:33]} 15. Qxb4 {[%clk
0:01:45.9]} 15... Nfxd5 {[%clk 0:02:19.9]} 16. Qd2 {[%clk 0:01:46.5]} 16... Nxe3
{[%clk 0:02:20.4]} 17. Qxe3 {[%clk 0:01:46.6]} 17... d5 {[%clk 0:02:18]} 18. Bd3
{[%clk 0:01:25]} 18... Bg5 {[%clk 0:01:53.1]} 19. Qe2 {[%clk 0:01:23]} 19... Bf4
{[%clk 0:01:35.8]} 20. Nd2 {[%clk 0:01:18.3]} 20... Na4 {[%clk 0:01:32.6]} 21.
O-O-O {[%clk 0:01:16.5]} 21... Qb6 {[%clk 0:01:30.3]} 22. b3 {[%clk 0:01:06.2]}
22... Qd4 {[%clk 0:01:27.1]} 0-1

[Event "*** Titled Tuesday 3|2 Blitz"]
[Site "Chess.com"]
[Date "2017.03.07"]
[Round "2"]
[White "Elshan1985"]
[Black "Hikaru"]
[Result "0-1"]
[WhiteElo "2491"]
[BlackElo "2902"]
[TimeControl "180+2"]
[EndTime "13:19:32 PST"]
[Termination "Hikaru won by resignation"]

1. d4 {[%clk 0:03:02]} 1... d5 {[%clk 0:03:00.5]} 2. Nf3 {[%clk 0:03:02.3]} 2...
c6 {[%clk 0:03:02.4]} 3. c4 {[%clk 0:03:03.2]} 3... Nf6 {[%clk 0:02:59.9]} 4. e3
{[%clk 0:03:03.4]} 4... Qb6 {[%clk 0:03:00.9]} 5. Nbd2 {[%clk 0:03:01.6]} 5...
Bf5 {[%clk 0:03:01.5]} 6. Be2 {[%clk 0:03:01.2]} 6... h6 {[%clk 0:03:02.2]} 7.
O-O {[%clk 0:03:01.8]} 7... e6 {[%clk 0:03:02.8]} 8. b3 {[%clk 0:03:02.1]} 8...
Nbd7 {[%clk 0:03:03.1]} 9. Bb2 {[%clk 0:03:03.7]} 9... Be7 {[%clk 0:03:02]} 10.
c5 {[%clk 0:03:03.9]} 10... Qc7 {[%clk 0:03:02.9]} 11. b4 {[%clk 0:03:05.5]}
11... O-O {[%clk 0:03:03.1]} 12. b5 {[%clk 0:03:05.2]} 12... b6 {[%clk
0:03:01.1]} 13. cxb6 {[%clk 0:02:58]} 13... axb6 {[%clk 0:02:55.3]} 14. a4
{[%clk 0:02:25.2]} 14... c5 {[%clk 0:02:46.7]} 15. dxc5 {[%clk 0:02:23.9]} 15...
bxc5 {[%clk 0:02:47.9]} 16. Bc3 {[%clk 0:02:04.2]} 16... e5 {[%clk 0:02:32.7]}
17. b6 {[%clk 0:01:26.2]} 17... Qxb6 {[%clk 0:02:27.6]} 18. Nxe5 {[%clk
0:01:26.7]} 18... Nxe5 {[%clk 0:02:09.7]} 19. Bxe5 {[%clk 0:01:26.9]} 19... Rfd8
{[%clk 0:02:11.6]} 20. Qb3 {[%clk 0:01:20.6]} 20... Qe6 {[%clk 0:02:10.5]} 21.
Bb2 {[%clk 0:01:02.9]} 21... c4 {[%clk 0:01:59]} 22. Qa2 {[%clk 0:01:03.9]}
22... Ne4 {[%clk 0:01:54.8]} 23. Nxe4 {[%clk 0:01:02.8]} 23... Bxe4 {[%clk
0:01:56.7]} 24. Bd4 {[%clk 0:00:57.1]} 24... Bf6 {[%clk 0:01:50.9]} 25. Rfd1
{[%clk 0:00:49]} 25... Rdb8 {[%clk 0:01:43.4]} 26. a5 {[%clk 0:00:49]} 26... c3
{[%clk 0:01:35.9]} 27. a6 {[%clk 0:00:45.3]} 27... Rb2 {[%clk 0:01:35.7]} 0-1

[Event "*** Titled Tuesday 3|2 Blitz"]
[Site "Chess.com"]
[Date "2017.03.07"]
[Round "2"]
[White "saraswathii"]
[Black "Marreuh"]
[Result "0-1"]
[WhiteElo "2161"]
[BlackElo "2094"]
[TimeControl "180+2"]
[EndTime "13:19:50 PST"]
[Termination "Marreuh won by resignation"]

1. e4 {[%clk 0:03:02]} 1... c5 {[%clk 0:03:00.8]} 2. Nf3 {[%clk 0:03:01.9]} 2...
d6 {[%clk 0:03:01.5]} 3. d3 {[%clk 0:03:00]} 3... Nc6 {[%clk 0:02:54.1]} 4. g3
{[%clk 0:03:00.5]} 4... g6 {[%clk 0:02:54.6]} 5. Bg2 {[%clk 0:03:01]} 5... Bg7
{[%clk 0:02:56.2]} 6. O-O {[%clk 0:03:00.3]} 6... e6 {[%clk 0:02:57.7]} 7. c3
{[%clk 0:02:58.8]} 7... Nge7 {[%clk 0:02:59.1]} 8. Na3 {[%clk 0:02:58]} 8... O-O
{[%clk 0:03:00]} 9. Nc2 {[%clk 0:02:58.2]} 9... d5 {[%clk 0:03:00.2]} 10. Qe2
{[%clk 0:02:57.8]} 10... b5 {[%clk 0:02:53.8]} 11. e5 {[%clk 0:02:58]} 11... Rb8
{[%clk 0:02:44.2]} 12. h4 {[%clk 0:02:56]} 12... h5 {[%clk 0:02:42.2]} 13. a3
{[%clk 0:02:55.8]} 13... a5 {[%clk 0:02:41.2]} 14. Bf4 {[%clk 0:02:56.5]} 14...
b4 {[%clk 0:02:40.5]} 15. axb4 {[%clk 0:02:52.5]} 15... axb4 {[%clk 0:02:39.3]}
16. Rab1 {[%clk 0:02:39.7]} 16... Ba6 {[%clk 0:02:35.3]} 17. g4 {[%clk
0:02:34.8]} 17... hxg4 {[%clk 0:02:30]} 18. Ng5 {[%clk 0:02:35.2]} 18... Nf5
{[%clk 0:02:23.5]} 19. Rfd1 {[%clk 0:02:25.7]} 19... Nxh4 {[%clk 0:02:18.8]} 20.
Qxg4 {[%clk 0:02:25.9]} 20... Nxg2 {[%clk 0:02:19.3]} 21. Qh3 {[%clk 0:02:24.4]}
21... Re8 {[%clk 0:02:05.1]} 22. Kxg2 {[%clk 0:02:21.9]} 22... Nxe5 {[%clk
0:01:56.7]} 23. Rh1 {[%clk 0:02:08.7]} 23... Qf6 {[%clk 0:01:45.4]} 24. Qg3
{[%clk 0:01:53.9]} 24... Bxd3 {[%clk 0:01:32]} 25. Nh7 {[%clk 0:01:44.3]} 25...
Qf5 {[%clk 0:01:16.4]} 26. Ne3 {[%clk 0:01:35.6]} 26... Qe4+ {[%clk 0:01:14.6]}
27. f3 {[%clk 0:01:36]} 27... Nxf3 {[%clk 0:01:00.2]} 28. Qxf3 {[%clk
0:01:15.1]} 28... Bxb1 {[%clk 0:01:00.1]} 29. Bxb8 {[%clk 0:01:13.3]} 29...
Qxf3+ {[%clk 0:00:53.6]} 0-1

[Event "*** Titled Tuesday 3|2 Blitz"]
[Site "Chess.com"]
[Date "2017.03.07"]
[Round "2"]
[White "Dr-Bassem"]
[Black "B-man"]
[Result "1-0"]
[WhiteElo "2632"]
[BlackElo "2503"]
[TimeControl "180+2"]
[EndTime "13:19:53 PST"]
[Termination "Dr-Bassem won by resignation"]

1. e4 {[%clk 0:03:02]} 1... e5 {[%clk 0:03:00.8]} 2. Nf3 {[%clk 0:03:02.6]} 2...
Nc6 {[%clk 0:03:02]} 3. Bb5 {[%clk 0:03:01]} 3... f5 {[%clk 0:03:03]} 4. d3
{[%clk 0:03:00.3]} 4... fxe4 {[%clk 0:03:02.8]} 5. dxe4 {[%clk 0:03:01.3]} 5...
Nf6 {[%clk 0:03:04.4]} 6. Nc3 {[%clk 0:03:00.8]} 6... Bc5 {[%clk 0:03:04.3]} 7.
O-O {[%clk 0:02:37.2]} 7... d6 {[%clk 0:02:51.1]} 8. Bg5 {[%clk 0:02:24.2]} 8...
O-O {[%clk 0:02:50.5]} 9. Nd5 {[%clk 0:02:22.4]} 9... Kh8 {[%clk 0:02:51.5]} 10.
c3 {[%clk 0:02:09.1]} 10... Ne7 {[%clk 0:02:48.4]} 11. Bc4 {[%clk 0:01:58]}
11... Nexd5 {[%clk 0:02:31.9]} 12. Bxd5 {[%clk 0:01:58.5]} 12... Qe8 {[%clk
0:02:33.5]} 13. Bxf6 {[%clk 0:01:53.1]} 13... Rxf6 {[%clk 0:02:18.9]} 14. Nd2
{[%clk 0:01:50.2]} 14... Qg6 {[%clk 0:02:10.4]} 15. Kh1 {[%clk 0:01:24.8]} 15...
Bxf2 {[%clk 0:01:55]} 16. Nf3 {[%clk 0:01:14.8]} 16... Bc5 {[%clk 0:01:46.4]}
17. b4 {[%clk 0:01:09.9]} 17... Bb6 {[%clk 0:01:47.3]} 18. Nh4 {[%clk 0:01:05]}
18... Qg5 {[%clk 0:01:44.8]} 19. Rxf6 {[%clk 0:01:02.8]} 19... Qxf6 {[%clk
0:01:39]} 20. Qh5 {[%clk 0:00:56.7]} 20... g6 {[%clk 0:01:14.2]} 21. Qh6 {[%clk
0:00:46.1]} 21... c6 {[%clk 0:01:07.2]} 22. Nxg6+ {[%clk 0:00:42.7]} 1-0

[Event "*** Titled Tuesday 3|2 Blitz"]
[Site "Chess.com"]
[Date "2017.03.07"]
[Round "2"]
[White "SwiftyMcBishop"]
[Black "escher"]
[Result "1-0"]
[WhiteElo "2169"]
[BlackElo "2018"]
[TimeControl "180+2"]
[EndTime "13:20:08 PST"]
[Termination "SwiftyMcBishop won by resignation"]

1. e4 {[%clk 0:03:02]} 1... c5 {[%clk 0:02:58.7]} 2. Nf3 {[%clk 0:03:02.6]} 2...
Nc6 {[%clk 0:02:59.2]} 3. c3 {[%clk 0:02:52]} 3... Nf6 {[%clk 0:02:59]} 4. e5
{[%clk 0:02:53]} 4... Nd5 {[%clk 0:02:53.7]} 5. d4 {[%clk 0:02:53.9]} 5... cxd4
{[%clk 0:02:54.1]} 6. cxd4 {[%clk 0:02:55.8]} 6... d6 {[%clk 0:02:54.2]} 7. Bc4
{[%clk 0:02:46]} 7... Nb6 {[%clk 0:02:52.6]} 8. Bb3 {[%clk 0:02:45.5]} 8... dxe5
{[%clk 0:02:26.6]} 9. Nxe5 {[%clk 0:02:46]} 9... Nxe5 {[%clk 0:02:13.3]} 10.
dxe5 {[%clk 0:02:45.9]} 10... Qxd1+ {[%clk 0:02:13.2]} 11. Kxd1 {[%clk
0:02:38.3]} 11... e6 {[%clk 0:01:54]} 12. Nc3 {[%clk 0:02:17.2]} 12... Bd7
{[%clk 0:01:37]} 13. Ke2 {[%clk 0:02:11.2]} 13... Bb4 {[%clk 0:01:22.4]} 14. Be3
{[%clk 0:02:05.4]} 14... Bxc3 {[%clk 0:01:10.6]} 15. bxc3 {[%clk 0:01:56.5]}
15... Bb5+ {[%clk 0:01:08.5]} 16. Kf3 {[%clk 0:01:55.2]} 16... Bc6+ {[%clk
0:01:01.1]} 17. Kg3 {[%clk 0:01:44]} 17... h5 {[%clk 0:00:44.8]} 18. h4 {[%clk
0:01:34.1]} 18... Nd5 {[%clk 0:00:37]} 19. Bd2 {[%clk 0:01:31.3]} 19... O-O-O
{[%clk 0:00:31.4]} 20. Rhd1 {[%clk 0:01:22.7]} 20... Rd7 {[%clk 0:00:24.9]} 21.
Rac1 {[%clk 0:01:19.4]} 21... Rhd8 {[%clk 0:00:24.7]} 22. Kh2 {[%clk 0:01:09.1]}
22... Nxc3 {[%clk 0:00:25.4]} 23. Bxc3 {[%clk 0:01:01.3]} 1-0

[Event "*** Titled Tuesday 3|2 Blitz"]
[Site "Chess.com"]
[Date "2017.03.07"]
[Round "2"]
[White "Wolverine_master"]
[Black "aa175"]
[Result "0-1"]
[WhiteElo "1933"]
[BlackElo "1862"]
[TimeControl "180+2"]
[EndTime "13:20:12 PST"]
[Termination "aa175 won on time"]

1. Nf3 {[%clk 0:03:02]} 1... d5 {[%clk 0:02:57.8]} 2. g3 {[%clk 0:03:03.1]} 2...
Nc6 {[%clk 0:02:58.5]} 3. d4 {[%clk 0:03:02.7]} 3... Nf6 {[%clk 0:02:58.7]} 4.
Bg2 {[%clk 0:03:04]} 4... Bf5 {[%clk 0:02:58.9]} 5. O-O {[%clk 0:03:04.8]} 5...
e6 {[%clk 0:02:59.8]} 6. c4 {[%clk 0:03:05.5]} 6... Be7 {[%clk 0:02:59.3]} 7.
Nc3 {[%clk 0:03:06.5]} 7... O-O {[%clk 0:02:58.9]} 8. Nh4 {[%clk 0:03:07.5]}
8... Bg6 {[%clk 0:02:59.5]} 9. Nxg6 {[%clk 0:03:08.8]} 9... hxg6 {[%clk
0:03:01.2]} 10. b3 {[%clk 0:03:06.2]} 10... Bb4 {[%clk 0:03:01.4]} 11. Bb2
{[%clk 0:02:53.9]} 11... dxc4 {[%clk 0:02:55.2]} 12. bxc4 {[%clk 0:02:54.7]}
12... Qxd4 {[%clk 0:02:51.9]} 13. Nb5 {[%clk 0:02:51.9]} 13... Qxb2 {[%clk
0:02:50.3]} 14. Nxc7 {[%clk 0:02:50.1]} 14... Rad8 {[%clk 0:02:49.4]} 15. Qa4
{[%clk 0:02:49.3]} 15... Qxe2 {[%clk 0:02:40.2]} 16. Bxc6 {[%clk 0:02:47.5]}
16... Qxc4 {[%clk 0:02:37.4]} 17. Rac1 {[%clk 0:02:44.8]} 17... Qd4 {[%clk
0:02:23]} 18. Bxb7 {[%clk 0:02:35.1]} 18... Bc5 {[%clk 0:01:58.6]} 19. Rc4
{[%clk 0:01:48.8]} 19... Qd6 {[%clk 0:01:49.9]} 20. Nb5 {[%clk 0:01:47.8]} 20...
Qb6 {[%clk 0:01:50.1]} 21. Bf3 {[%clk 0:01:21.7]} 21... Rd2 {[%clk 0:01:45.4]}
22. Rxc5 {[%clk 0:00:43.5]} 22... Qxc5 {[%clk 0:01:44.8]} 23. Nxa7 {[%clk
0:00:45]} 23... Qd4 {[%clk 0:01:36.9]} 24. Qxd4 {[%clk 0:00:43.9]} 24... Rxd4
{[%clk 0:01:38.8]} 25. Ra1 {[%clk 0:00:43.4]} 25... Ra4 {[%clk 0:01:38.2]} 26.
Nb5 {[%clk 0:00:42]} 26... Rb8 {[%clk 0:01:37.1]} 27. Nc3 {[%clk 0:00:41]} 27...
Ra3 {[%clk 0:01:37.2]} 28. Rc1 {[%clk 0:00:28.3]} 28... Rc8 {[%clk 0:01:36.3]}
0-1

[Event "*** Titled Tuesday 3|2 Blitz"]
[Site "Chess.com"]
[Date "2017.03.07"]
[Round "2"]
[White "Ginger_GM"]
[Black "ShimanovAlex"]
[Result "0-1"]
[WhiteElo "2497"]
[BlackElo "2648"]
[TimeControl "180+2"]
[EndTime "13:20:26 PST"]
[Termination "ShimanovAlex won by resignation"]

1. d4 {[%clk 0:03:02]} 1... Nf6 {[%clk 0:02:59.9]} 2. Bf4 {[%clk 0:02:57.6]}
2... d5 {[%clk 0:02:58.3]} 3. e3 {[%clk 0:02:57.2]} 3... c5 {[%clk 0:02:59.3]}
4. c3 {[%clk 0:02:54.9]} 4... Nc6 {[%clk 0:03:00.1]} 5. Nd2 {[%clk 0:02:54.8]}
5... Bg4 {[%clk 0:03:00.9]} 6. f3 {[%clk 0:02:51.1]} 6... Bc8 {[%clk 0:02:54.2]}
7. g4 {[%clk 0:02:47.4]} 7... g6 {[%clk 0:02:50.2]} 8. h4 {[%clk 0:02:47.1]}
8... h5 {[%clk 0:02:49.5]} 9. g5 {[%clk 0:02:46.2]} 9... Nd7 {[%clk 0:02:50.6]}
10. e4 {[%clk 0:02:26.5]} 10... dxe4 {[%clk 0:02:33.6]} 11. d5 {[%clk
0:02:24.9]} 11... Nce5 {[%clk 0:02:34.3]} 12. Nxe4 {[%clk 0:02:16]} 12... Bg7
{[%clk 0:02:34.1]} 13. Bg3 {[%clk 0:01:48]} 13... O-O {[%clk 0:02:32.6]} 14. Be2
{[%clk 0:01:36.9]} 14... Nb6 {[%clk 0:02:16.2]} 15. f4 {[%clk 0:01:37.7]} 15...
Ng4 {[%clk 0:02:17.2]} 16. Qd2 {[%clk 0:01:12.4]} 16... Bf5 {[%clk 0:02:07.9]}
17. Nxc5 {[%clk 0:01:09.6]} 17... Qc7 {[%clk 0:02:05.3]} 18. Nb3 {[%clk
0:01:06]} 18... Rfd8 {[%clk 0:02:05.2]} 19. Bf3 {[%clk 0:00:47.7]} 19... Nc4
{[%clk 0:02:04.2]} 20. Qe2 {[%clk 0:00:48.1]} 20... Nge3 {[%clk 0:02:02.1]} 21.
Rc1 {[%clk 0:00:37.5]} 21... Nxd5 {[%clk 0:01:58]} 22. Nh3 {[%clk 0:00:30.9]}
22... Nde3 {[%clk 0:01:28.5]} 23. Nf2 {[%clk 0:00:30.8]} 23... Qb6 {[%clk
0:01:14.9]} 24. Be4 {[%clk 0:00:19.3]} 24... Rac8 {[%clk 0:01:13.1]} 25. Bxf5
{[%clk 0:00:20.2]} 25... Nxf5 {[%clk 0:01:14.3]} 26. Rh3 {[%clk 0:00:21.6]}
26... a5 {[%clk 0:01:11.7]} 27. Kf1 {[%clk 0:00:21]} 27... a4 {[%clk 0:01:12]}
28. Nd4 {[%clk 0:00:22.2]} 28... Bxd4 {[%clk 0:01:12.1]} 29. cxd4 {[%clk
0:00:23.7]} 29... Nce3+ {[%clk 0:01:13.3]} 0-1

[Event "*** Titled Tuesday 3|2 Blitz"]
[Site "Chess.com"]
[Date "2017.03.07"]
[Round "2"]
[White "Iball95"]
[Black "Misha_Bilous"]
[Result "0-1"]
[WhiteElo "2476"]
[BlackElo "2271"]
[TimeControl "180+2"]
[EndTime "13:20:28 PST"]
[Termination "Misha_Bilous won by resignation"]

1. e4 {[%clk 0:03:02]} 1... c5 {[%clk 0:03:00.6]} 2. Nf3 {[%clk 0:03:02.1]} 2...
d6 {[%clk 0:03:00.8]} 3. Bb5+ {[%clk 0:03:02.7]} 3... Bd7 {[%clk 0:03:01.7]} 4.
Bxd7+ {[%clk 0:03:02.8]} 4... Qxd7 {[%clk 0:03:03.1]} 5. c4 {[%clk 0:03:03]}
5... Nc6 {[%clk 0:03:03.7]} 6. d4 {[%clk 0:03:02.8]} 6... cxd4 {[%clk
0:03:04.1]} 7. Nxd4 {[%clk 0:03:04.7]} 7... g6 {[%clk 0:03:05.4]} 8. Nc3 {[%clk
0:03:04.1]} 8... Bg7 {[%clk 0:03:06.5]} 9. Be3 {[%clk 0:03:04.7]} 9... Nf6
{[%clk 0:03:07.8]} 10. f3 {[%clk 0:03:06.2]} 10... O-O {[%clk 0:03:08.2]} 11.
Rc1 {[%clk 0:03:06.6]} 11... e6 {[%clk 0:03:05.4]} 12. O-O {[%clk 0:03:03.5]}
12... Rfd8 {[%clk 0:03:01.7]} 13. b3 {[%clk 0:02:42.6]} 13... d5 {[%clk
0:02:59.8]} 14. Nxc6 {[%clk 0:02:42]} 14... bxc6 {[%clk 0:02:59.8]} 15. cxd5
{[%clk 0:02:42.8]} 15... cxd5 {[%clk 0:02:46.9]} 16. exd5 {[%clk 0:02:43.2]}
16... Nxd5 {[%clk 0:02:30.7]} 17. Nxd5 {[%clk 0:02:44]} 17... Qxd5 {[%clk
0:02:26.8]} 18. Qxd5 {[%clk 0:02:43.9]} 18... Rxd5 {[%clk 0:02:19.1]} 19. Rfd1
{[%clk 0:02:44.1]} 19... a5 {[%clk 0:01:52.3]} 20. Rxd5 {[%clk 0:02:39.1]} 20...
exd5 {[%clk 0:01:53.5]} 21. Rd1 {[%clk 0:02:31.9]} 21... d4 {[%clk 0:01:36]} 22.
Bf2 {[%clk 0:02:27.4]} 22... a4 {[%clk 0:01:35.3]} 23. Kf1 {[%clk 0:02:09.5]}
23... axb3 {[%clk 0:01:07.9]} 24. axb3 {[%clk 0:02:11.4]} 24... Ra3 {[%clk
0:01:02.4]} 25. Rd3 {[%clk 0:02:10.7]} 25... Ra1+ {[%clk 0:00:58.6]} 26. Ke2
{[%clk 0:02:10.7]} 26... Rb1 {[%clk 0:01:00]} 27. g4 {[%clk 0:01:58.5]} 27... f5
{[%clk 0:00:43.9]} 28. gxf5 {[%clk 0:01:47.1]} 28... gxf5 {[%clk 0:00:44.7]} 29.
Be1 {[%clk 0:01:49]} 29... Kf7 {[%clk 0:00:42]} 30. Bd2 {[%clk 0:01:49.3]} 30...
Ke6 {[%clk 0:00:36]} 31. b4 {[%clk 0:01:43.2]} 31... Kd5 {[%clk 0:00:31.7]} 32.
Ra3 {[%clk 0:01:42.5]} 32... Kc4 {[%clk 0:00:29]} 33. Ra7 {[%clk 0:01:41.7]}
33... d3+ {[%clk 0:00:29.4]} 0-1

[Event "*** Titled Tuesday 3|2 Blitz"]
[Site "Chess.com"]
[Date "2017.03.07"]
[Round "2"]
[White "ZEN-22"]
[Black "rubhani"]
[Result "1-0"]
[WhiteElo "2344"]
[BlackElo "2385"]
[TimeControl "180+2"]
[EndTime "13:20:33 PST"]
[Termination "ZEN-22 won by checkmate"]

1. e3 {[%clk 0:03:02]} 1... c5 {[%clk 0:03:00.4]} 2. Ne2 {[%clk 0:03:02.2]} 2...
Nf6 {[%clk 0:03:01.3]} 3. d4 {[%clk 0:03:02.6]} 3... d5 {[%clk 0:03:01.5]} 4. c4
{[%clk 0:03:02.4]} 4... Nc6 {[%clk 0:03:00.7]} 5. cxd5 {[%clk 0:03:02.7]} 5...
Nxd5 {[%clk 0:02:58.1]} 6. e4 {[%clk 0:03:03]} 6... Nf6 {[%clk 0:02:40.1]} 7. d5
{[%clk 0:03:03.3]} 7... Nb8 {[%clk 0:02:05.8]} 8. Nbc3 {[%clk 0:03:01.6]} 8...
e6 {[%clk 0:02:05.1]} 9. Nf4 {[%clk 0:02:52.6]} 9... e5 {[%clk 0:01:58.6]} 10.
Nh5 {[%clk 0:02:43.3]} 10... Nbd7 {[%clk 0:01:53]} 11. f4 {[%clk 0:02:33.5]}
11... Bd6 {[%clk 0:01:30.1]} 12. Nxg7+ {[%clk 0:02:31.6]} 12... Kf8 {[%clk
0:01:28.2]} 13. Nf5 {[%clk 0:02:31.8]} 13... Nb6 {[%clk 0:01:07]} 14. fxe5
{[%clk 0:02:20.1]} 14... Bxf5 {[%clk 0:00:52.4]} 15. exd6 {[%clk 0:02:19]} 15...
Nxe4 {[%clk 0:00:52.5]} 16. Nxe4 {[%clk 0:02:09.8]} 16... Bxe4 {[%clk
0:00:51.7]} 17. Bh6+ {[%clk 0:02:08.8]} 17... Kg8 {[%clk 0:00:52.1]} 18. Qg4+
{[%clk 0:02:05.8]} 18... Bg6 {[%clk 0:00:52.9]} 19. O-O-O {[%clk 0:01:39.3]}
19... Qxd6 {[%clk 0:00:45]} 20. h4 {[%clk 0:01:39.8]} 20... f5 {[%clk
0:00:42.5]} 21. Qg5 {[%clk 0:01:40.1]} 21... Qe5 {[%clk 0:00:27.6]} 22. h5
{[%clk 0:01:35.3]} 22... Na4 {[%clk 0:00:28.5]} 23. Rd2 {[%clk 0:01:11.8]} 23...
Qe1+ {[%clk 0:00:28.9]} 24. Kc2 {[%clk 0:01:12.5]} 24... Kf7 {[%clk 0:00:30.1]}
25. d6 {[%clk 0:01:05.1]} 25... Qa1 {[%clk 0:00:14.5]} 26. Bc4+ {[%clk
0:01:02.2]} 26... Ke8 {[%clk 0:00:12.7]} 27. Qe7# {[%clk 0:01:03.1]} 1-0

[Event "*** Titled Tuesday 3|2 Blitz"]
[Site "Chess.com"]
[Date "2017.03.07"]
[Round "2"]
[White "workhard91"]
[Black "FearlessKing64"]
[Result "1-0"]
[WhiteElo "2226"]
[BlackElo "2123"]
[TimeControl "180+2"]
[EndTime "13:20:47 PST"]
[Termination "workhard91 won by resignation"]

1. e4 {[%clk 0:03:02]} 1... c5 {[%clk 0:03:00.6]} 2. Nf3 {[%clk 0:03:03]} 2...
d6 {[%clk 0:03:01.9]} 3. Bb5+ {[%clk 0:03:03.2]} 3... Nd7 {[%clk 0:03:01.8]} 4.
O-O {[%clk 0:03:00.5]} 4... a6 {[%clk 0:03:02.4]} 5. Bd3 {[%clk 0:03:01.5]} 5...
b5 {[%clk 0:02:54.5]} 6. c4 {[%clk 0:03:02.2]} 6... g5 {[%clk 0:02:31.4]} 7.
Nxg5 {[%clk 0:02:44.8]} 7... Ne5 {[%clk 0:02:31.6]} 8. Be2 {[%clk 0:02:44.9]}
8... bxc4 {[%clk 0:02:29.3]} 9. Na3 {[%clk 0:02:40.8]} 9... e6 {[%clk
0:02:21.8]} 10. f4 {[%clk 0:02:27.5]} 10... h6 {[%clk 0:01:57.2]} 11. fxe5
{[%clk 0:01:40.3]} 11... hxg5 {[%clk 0:01:53.8]} 12. Nxc4 {[%clk 0:01:41.6]}
12... d5 {[%clk 0:01:33.1]} 13. exd5 {[%clk 0:01:30.5]} 13... Qxd5 {[%clk
0:01:22.1]} 14. d3 {[%clk 0:01:21.8]} 14... Bb7 {[%clk 0:01:07.5]} 15. Bf3
{[%clk 0:01:22.7]} 15... Qd4+ {[%clk 0:01:08.7]} 16. Be3 {[%clk 0:01:23.2]}
16... Qh4 {[%clk 0:01:01.4]} 17. Bxb7 {[%clk 0:01:15.3]} 17... Qxh2+ {[%clk
0:01:01.4]} 18. Kf2 {[%clk 0:01:16.6]} 18... Rb8 {[%clk 0:00:45.6]} 19. Qa4+
{[%clk 0:01:00.3]} 19... Kd8 {[%clk 0:00:35.9]} 20. Qc6 {[%clk 0:00:30.7]} 20...
Qh4+ {[%clk 0:00:23.6]} 21. Ke2 {[%clk 0:00:31.2]} 21... Rxb7 {[%clk 0:00:16.9]}
22. Qxb7 {[%clk 0:00:31.3]} 22... Qg4+ {[%clk 0:00:18.1]} 23. Kd2 {[%clk
0:00:31.1]} 23... Qxg2+ {[%clk 0:00:17.6]} 24. Qxg2 {[%clk 0:00:30.9]} 1-0